Cogmind - Beta 15 @@@ ROGUE MODE // 2025.07.19 @ 05:57:33 Player: Sirius Result: Destroyed by JL-8PF(R) with Subdweller Beam Cannon Performance ------------- Evolutions (0) 0 Regions Visited (2) 400 Robots Destroyed (4) 20 Value Destroyed (148) 148 Prototype IDs (0) 0 Alien Tech Used (0) 0 Bonus (0) 0 TOTAL SCORE: 568 Bonus ------- None Cogmind --------- Core Integrity 0/250 Matter 300/300 Energy 100/100 System Corruption 0% Temperature Cool (9) Movement Core (100) Ox1 Location -10/Subcaves Parts ------- > --- POWER (1) -------- (None) > --- PROPULSION (2) --- (None) > --- UTILITY (2) ------ Small Storage Unit > --- WEAPON (2) ------- (None) > --- INVENTORY (8) ---- Subdweller Power Source Wheel Compact Wheel Subdweller Monowheel Subdweller Monowheel Heat Sink Subdweller Optics Dirty Datajack (20) Peak State ------------ > --- POWER ------------ Subdweller Power Source > --- PROPULSION ------- Aluminum Leg Aluminum Leg > --- UTILITY ---------- Small Storage Unit Subdweller Optics > --- WEAPON ----------- Small Laser Light Assault Rifle > --- INVENTORY -------- Subdweller Power Source Wheel Compact Wheel Heat Sink Subdweller Optics Dirty Datajack [Rating: 10] Favorites ----------- Power Light Ion Engine Engine Light Ion Engine Propulsion Aluminum Leg Leg Aluminum Leg Utility Small Storage Unit Device Subdweller Optics Storage Small Storage Unit Weapon Light Assault Rifle Energy Gun Small Laser Ballistic Gun Light Assault Rifle Build | -11 -10 -10 ------- Run | Yrd Mat Sub Slots Evolved . | . . . Power . | . . . Propulsion . | . . . Utility . | . . . Weapon . | . . . Parts Attached 13 | 6 . 7 Power 3 | 1 . 2 Engine 3 | 1 . 2 Core . | . . . Reactor . | . . . Propulsion 4 | 2 . 2 Treads . | . . . Leg 4 | 2 . 2 Wheel . | . . . Hover . | . . . Flight . | . . . Utility 2 | 1 . 1 Device 1 | . . 1 Storage 1 | 1 . . Processor . | . . . Hackware . | . . . Protection . | . . . Artifact . | . . . Weapon 4 | 2 . 2 Energy Gun 1 | . . 1 Energy Cannon . | . . . Ballistic Gun 3 | 2 . 1 Ballistic Cannon . | . . . Launcher . | . . . Special Weapon . | . . . Impact Weapon . | . . . Slashing Weapon . | . . . Piercing Weapon . | . . . Special Melee Weapon . | . . . Unidentified Prototypes . | . . . Parts Lost 12 | . . 12 Power 3 | . . 3 Propulsion 4 | . . 4 Utility 1 | . . 1 Weapon 4 | . . 4 Highest Loss Streak 6 | . . 6 To Critical Strikes . | . . . Average Backups 6 | 3 6 6 Power . | . 1 . Propulsion 3 | 1 4 3 Utility . | . . 1 Weapon 1 | . 1 . Tool/Special . | . . . Unused Backups 10 | . 2 8 Power 1 | . . 1 Propulsion 6 | . 2 4 Utility 2 | . . 2 Weapon . | . . . Tool/Special 1 | . . 1 Average Slot Usage (%) 88 | . 85 90 Engine 12 | . 14 11 Leg 26 | . 28 24 Device 6 | . . 10 Storage 14 | . 14 14 Energy Gun 4 | . . 7 Ballistic Gun 23 | . 28 20 Peak Build Rating 10 | 6 6 10 Average Rating 6 | 5 6 7 On Entrance 4 | . 6 6 Naked Turns . | . . . Heaviest Build 14 | 11 11 14 Greatest Support 20 | 20 20 20 Greatest Overweight (x) 1 | . . 1 Average Overweight (x) . | . . . Largest Inventory Capacity 8 | 8 8 8 Average Capacity 7 | 7 8 8 Most Carried 8 | 6 8 8 Average Carried 6 | 3 6 6 Final Capacity 8 | 8 8 8 Final Carried 8 | 6 8 8 Class Distribution -------------------- 100% | Mutant Dominant Class ---------------- Mutant | -10/Materials Mutant | -10/Subcaves Resources | -11 -10 -10 ----------- Run | Yrd Mat Sub Matter Collected 384 | 211 81 92 Remotely . | . . . Salvage Created 178 | . 86 92 Parts 17 | . 6 11 Haulers Intercepted . | . . . Recyclers Shooed . | . . . Parts Field Recycled . | . . . Retrieved Matter . | . . . Parts Self-Destructed 6 | . . 6 Prevented . | . . . Kills | -11 -10 -10 ------- Run | Yrd Mat Sub Combat Hostiles Destroyed 4 | . 2 2 Guns 4 | . 2 2 Classes Destroyed 2 | . 1 1 Grunt 2 | . 2 . Subdweller 2 | . . 2 Best Kill Streak 2 | . 2 1 Combat Bots Only 2 | . 2 1 Max Kills in Single Turn 1 | . 1 1 Gunslinging . | . . . Exploded . | . . . Melee . | . . . Uniques/NPCs Destroyed . | . . . Combat | -11 -10 -10 -------- Run | Yrd Mat Sub Hostile Shots Fired 59 | . 13 46 Missed 9 | . 4 5 Hits 50 | . 9 41 Projectile 50 | . 9 41 Critical Strikes 1 | . . 1 Damage Taken 1179 | . 99 1080 Core 257 | . 10 247 Absorbed by Shields . | . . . Core Remaining (%) 100 | 100 . . Volleys Fired 34 | . 9 25 Largest 2 | . 2 2 Hottest 60 | . 40 60 Shots Fired 63 | . 18 45 Gun 63 | . 18 45 Cannon . | . . . Launcher . | . . . Special . | . . . Kinetic 56 | . 18 38 Thermal 7 | . . 7 Explosive . | . . . Electromagnetic . | . . . Robot Hit Streak 21 | . 5 21 Robot Miss Streak 2 | . 2 2 Penetration Max . | . . . Secondary Targets . | . . . Shots Hit Robots 49 | . 12 37 Core Hits 12 | . 4 8 Critical Kills . | . . . Critical Parts Destroyed . | . . . Critical Strikes . | . . . Melee Attacks . | . . . Impact . | . . . Slashing . | . . . Piercing . | . . . Sneak Attacks . | . . . Combat Hostiles . | . . . Follow-up Attacks . | . . . Damage Inflicted 489 | . 120 369 Guns 489 | . 120 369 Cannons . | . . . Explosions . | . . . Melee . | . . . Ramming . | . . . Kinetic 414 | . 120 294 Thermal 75 | . . 75 Explosive . | . . . Electromagnetic . | . . . Impact . | . . . Slashing . | . . . Piercing . | . . . Highest Corruption . | . . . Average Corruption . | . . . Corruption Purged . | . . . Corruption Blocked . | . . . Overload Shots . | . . . Overflow Damage . | . . . Projectiles . | . . . Explosions . | . . . Melee . | . . . Knockbacks . | . . . Impact . | . . . Kinetic . | . . . Secondary . | . . . Self-Inflicted Damage . | . . . Shots . | . . . Rammed . | . . . Targets Rammed . | . . . Kicked . | . . . Crushed . | . . . Highest Temperature 6 | . 6 1 Average Temperature 4 | . 6 1 Received Heat Transfer 222 | . 54 168 Siege Activations . | . . . Martial Activations . | . . . Shielding Activations . | . . . Robots Disrupted . | . . . Combat Hostiles . | . . . Robots Corrupted . | . . . Combat Hostiles . | . . . Parts Fried . | . . . Impact Corruptions . | . . . Robots Melted . | . . . Combat Hostiles . | . . . Parts Melted . | . . . Heat Transferred 175 | . . 175 Parts Sabotaged . | . . . Parts Stolen . | . . . Parts Stripped . | . . . Power Chain Reactions . | . . . Alert | -11 -10 -10 ------- Run | Yrd Mat Sub Maximum Alert Level . | . . . Low Security (%) 100 | 100 100 . Level 1 . | . . . Level 2 . | . . . Level 3 . | . . . Level 4 . | . . . Level 5 . | . . . High Security . | . . . Max Security . | . . . Peak Influence 40 | . 40 . Initial . | . . . Average 5 | . 8 . Influence Increases 40 | . 40 . Destroy 0b10 Robot/C 40 | . 40 . Influence Decreases 40 | . 40 . Time Decay 40 | . 40 . Squads Dispatched 1 | . 1 . Investigation . | . . . Extermination . | . . . Reinforcement 1 | . 1 . Assault . | . . . Garrison . | . . . Intercept . | . . . Searches Triggered . | . . . Construction Impeded . | . . . Haulers Reinforced . | . . . Active Scanning Responses . | . . . Cargo Convoy Interrupts . | . . . Stealth | -11 -10 -10 --------- Run | Yrd Mat Sub Distress Signals . | . . . Communications Jammed . | . . . Distress Signals . | . . . Times Spotted 7 | . 3 4 Peak Tracking Total 2 | . 2 2 Tactical Retreats . | . . . Traps | -11 -10 -10 ------- Run | Yrd Mat Sub Traps Triggered 3 | . . 3 Indirectly . | . . . Trap Hack Attempts . | . . . Triggered . | . . . Disarmed . | . . . Reprogrammed . | . . . Reused . | . . . Traps Extracted . | . . . Installed . | . . . Triggered . | . . . Machines | -11 -10 -10 ---------- Run | Yrd Mat Sub Machines Disabled . | . . . Max in Single Turn . | . . . Machines Repaired . | . . . Machines Dismantled . | . . . Machines Sabotaged . | . . . Overloaded Fab Kills . | . . . Hacking | -11 -10 -10 --------- Run | Yrd Mat Sub Machines Accessed . | . . . Terminals . | . . . Fabricators . | . . . Repair Stations . | . . . Recycling Units . | . . . Scanalyzers . | . . . Garrison Access . | . . . Total Hacks . | . . . Successful . | . . . Failed . | . . . Catastrophic . | . . . Database Lockouts . | . . . Manual . | . . . Terminals . | . . . Fabricators . | . . . Repair Stations . | . . . Recycling Units . | . . . Scanalyzers . | . . . Garrison Access . | . . . Terminal Hacks . | . . . Fabricator Hacks . | . . . Repair Station Hacks . | . . . Recycling Unit Hacks . | . . . Scanalyzer . | . . . Garrison Access Hacks . | . . . Unauthorized Hacks . | . . . Terminals . | . . . Fabricators . | . . . Repair Stations . | . . . Recycling Units . | . . . Scanalyzers . | . . . Garrison Access . | . . . Data Cores Recovered . | . . . Used . | . . . Hacking Detections . | . . . Full Trace Events . | . . . Feedback Events . | . . . Feedback Blocked . | . . . Robot Schematics Acquired . | . . . Robots Built . | . . . Authchips . | . . . Time . | . . . Total Robot Build Rating . | . . . Part Schematics Acquired . | . . . Parts Built . | . . . Authchips . | . . . Time . | . . . Total Part Build Rating . | . . . Parts Repaired . | . . . Time . | . . . Parts Recycled . | . . . Recycled Matter . | . . . Retrieved Matter . | . . . Retrieved Components . | . . . Parts Scanalyzed . | . . . Part Schematics Acquired . | . . . Parts Damaged . | . . . Bothacking | -11 -10 -10 ------------ Run | Yrd Mat Sub Used RIF Installer . | . . . Robots Hacked . | . . . Non-combat . | . . . Combat . | . . . Robot Hacks Applied . | . . . Relay Couplers Released . | . . . Fabnet Peak Effective % . | . . . Robots Rewired . | . . . Allies Hacked . | . . . Hacks Repelled . | . . . Allies | -11 -10 -10 -------- Run | Yrd Mat Sub Total Allies . | . . . Largest Group . | . . . Highest-Rated Group . | . . . Highest-Rated Ally . | . . . Total Orders . | . . . Ally Attacks . | . . . Total Damage . | . . . Kills . | . . . Allies Corrupted . | . . . Allies Melted . | . . . Intel | -11 -10 -10 ------- Run | Yrd Mat Sub Active Infowar (turns) 239 | . . 239 Optics 239 | . . 239 Robot Analysis Total . | . . . Derelict Logs Recovered . | . . . Drone Launches . | . . . Drone Recoveries . | . . . Exploration | -11 -10 -10 ------------- Run | Yrd Mat Sub Turns Passed 587 | 87 187 313 Spaces Moved 366 | 64 125 177 Core 6 | 6 . . Treads . | . . . Legs 360 | 58 125 177 Wheels . | . . . Hover . | . . . Flight . | . . . Fastest Speed 50 | 50 120 120 Average Speed 120 | 113 120 123 Slowest Speed 190 | 120 120 190 Overloaded Moves . | . . . Propulsion Burnouts . | . . . Robots Hopped . | . . . Potential Cave-ins . | . . . Cave-ins Triggered . | . . . Exploration Rate (%) 15 | 4 22 19 Regions Visited 2 Branch Regions 1 Pre-discovered Areas . | . . . Known Exits Taken . | . . . Unknown Exits Taken 2 | 1 1 . Scrap Searched . | . . . Spaces Dug . | . . . Terrain Destroyed . | . . . Melee . | . . . Projectile . | . . . AOE . | . . . Terrain Rammed . | . . . Walls Destroyed . | . . . Machines Disabled . | . . . Actions | -11 -10 -10 --------- Run | Yrd Mat Sub Total 453 | 75 147 231 Wait 24 | . 8 16 Move 364 | 63 124 177 Hop . | . . . Pick Up 16 | 6 4 6 Fast Attach 7 | 6 . 1 Attach 6 | . . 6 Detach . | . . . Swap . | . . . Drop 2 | . 2 . Fire 34 | . 9 25 Melee . | . . . Ram . | . . . Kick . | . . . Crush . | . . . Escape Stasis . | . . . Rewire . | . . . Trap . | . . . Miscellaneous . | . . . Route ------- -11/Scrapyard -10/Materials -10/Subcaves History --------- Turn | Location | Event 4 | -11/Scrapyard | Discovered new exit (range 16) 88 | -11/Scrapyard | Entered Materials 152 | -10/Materials | Discovered new exit (range 10) 275 | -10/Materials | Entered Subcaves 276 | -10/Subcaves | Approached by a straggling Scientist 315 | -10/Subcaves | Build established: Mutant 331 | -10/Subcaves | Shifting Twisted Machinery released Sub. Optics 422 | -10/Subcaves | Core integrity fell below 50% 456 | -10/Subcaves | Lost 4 parts (1p1n2w) 585 | -10/Subcaves | Core integrity fell below 20% 588 | -10/Subcaves | Destroyed by JL-8PF(R) with Subdweller Beam Cannon Last Messages --------------- here" 00433_ 2R-6T8(R) destroyed. 00437_ Acquired Sub. Power Source. 00442_ Acquired Dirty Datajack. 00447_ Acquired Sub. Optics. 00448_ Subatomizers dissect the Sub. Monowheel. 00450_ Acquired 35 matter. 00455_ Acquired Sub. Power Source. 00459_ Acquired Sub. Monowheel. 00471_ Subatomizers dissect the Sub. Laser. DW-QZ0(c): "I think it's somewhere northeast of here" DW-QZ0(c): "I think it's somewhere east of here" 00576_ Aluminum Leg destroyed. 00578_ Sub. Optics destroyed. DW-QZ0(c): "I think it's somewhere east of here" 00581_ Sml. Laser destroyed. 00583_ Aluminum Leg destroyed. 00586_ Sub. Power Source destroyed. 00587_ Lgt. Assault Rifle destroyed. Map ----- +----------------------------------------------------+ | | | | | | | | | | | | | | | | | ?????????????????????????????????????????????????? | | ?????????????????????????????????????????????????? | | ?????????????????????????????????????????????????? | | ?????????????????????????????????????????????????? | | ?????????????????????????????????????????????????? | | ?????????????????????????????????????????????????? | | ?????????????????????????????????????????????????? | | ?????????????????????????????????????????????????? | | ?????????????????????????????????????????????????? | | ?????????????????????????????????????????????????? | | ?????????????????????????????????????????????????? | | ?????????????????????????????????????????????????? | | ?????????????????????????????????????????????????? | | ?????????????????????????????????????????????????? | | ???????????????###########???????????????????????? | | ??????????????#; ## ##??????????????????????? | | ??????????????# #??????????????????????? | | ??????????????# @#?????? #????????????? | | ?????????##?## ## c RR### #????????????? | | ????????# ## ## #??????????????????? | | ???????# ## #???????????????? | | ?????# ## ???????????? | | ?? ????## ### #?????????? | | ???? #???# #?# #??????? | | ?????# ??# #?### #### ##### #??????? | | ?????# ## ##???######???##?????? ##??????? | | ?????# ##??????????????????????? #???????? | | ?????## #?????????????????????????????????? | | ??????## ## #####?????????????????????????????? | | ???????###?### #?????????????????????????????? | | ?????????????## #?????????????????????????????? | | ??????????????## #?????????????????????????????? | | ?????????####### ##?????????????????????????????? | | ????????## ####???????????????????????????? | | ????????# #???????????????????????????? | | ????##### ##???????????????????????????? | | ????# ## #????????????????????????????? | | ????# ## #???????????????????????????? | | ###?# ### #???????????????????????????? | | # ### ### #???????????????????????????? | | ## #???????????????????????????? | | #???????????????????????????? | +----------------------------------------------------+ Best States ------------- Heat Dissipation 25 Energy Generation 15 Energy Capacity 200 Matter Stores 300 Matter Capacity 300 Sight Range 21 Terrain Scan Density 10 Evasion (%) 55 Item Schematics ----------------- None Robot Schematics ------------------ None Fabricated ------------ Nothing Repaired ---------- Nothing Alien Tech Used ----------------- None Achievements -------------- None Challenges ------------ None Game ------ Seed InsulatedDamperDriver Manual? 0 Play Time 00:06:05 Cumulative 24.9 hours Start 2025.07.19 @ 05:49:11 End 2025.07.19 @ 05:57:33 Sessions 1 Manual Loads 0 Difficulty Rogue Special Mode None Game No. 19 Rogue 19 Adventurer 0 Explorer 0 Win Type - Total 0 Types 0/0/0/0/0/0/0/0/0/0 Lore% 23 Gallery% 22 Achievement% 20 Wizard Run 0 Options --------- Layout 1 ASCII 0 Keyboard 0 Movement Mouse Keybinds 0 Fullscreen 1 Font 24/Smallcaps Map View 50x35 Zoom Use 0% Tactical HUD 1 Map Filters NONE Filters NONE Steam 1 RUN: d64486be-27ce-4528-8a6b-1bfe302d9f4f